[Event "45th FIDE Olympiad 2024"]
[Site "Budapest"]
[Date "2024.09.15"]
[Round "5.34"]
[White "Van Foreest, Jorden"]
[Black "Quesada Perez, Luis Ernesto"]
[Result "1-0"]
[ECO "C54"]
[WhiteElo "2696"]
[BlackElo "2578"]
[Annotator "TA"]
[PlyCount "85"]
[EventDate "2024.09.05"]
[EventType "team-tourn"]
[EventCountry "HUN"]
[SourceTitle "playchess.com"]
[Source "ChessBase"]
[SourceQuality "1"]
[WhiteTeam "Netherlands"]
[BlackTeam "Cuba"]
[WhiteTeamCountry "NED"]
[BlackTeamCountry "CUB"]
[TimeControl "40/5400+30:1800+30"]

{[%evp 11,85,12,15,14,22,15,27,20,7,13,15,20,31,19,27,-28,-16,-37,-28,-37,0,-15,0,-9,-2,-6,0,0,25,21,31,24,29,33,15,22,108,58,51,17,84,99,130,138,134,122,154,120,132,126,115,120,121,122,112,107,114,124,261,257,230,288,343,348,342,342,316,329,360,364,459,441,461,436,523,504]} 1. e4 {[%emt 0:00:07]} e5 {[%emt 0:00:07]} 2. Nf3 {[%emt 0:00:09]} Nc6 {[%emt 0:00:06]} 3. Bc4 {[%emt 0:00:15]} Bc5 {[%emt 0:00:16]} 4. c3 {[%emt 0:00:20]} Nf6 {[%emt 0:00:08]} 5. d3 {[%emt 0:00:07]} d6 {[%emt 0:00:17]} 6. O-O {[%emt 0:00:21]} a6 {[%emt 0:01:44]} 7. a4 {[%emt 0:00:11]} Ba7 {[%emt 0:00:08]} 8. Re1 {[%emt 0:01:23]} O-O {[%emt 0:00:45]} 9. h3 {[%emt 0:00:08] White has an edge.} h6 {[%emt 0:00:40]} 10. Nbd2 {[%emt 0:01:19]} Re8 {[%emt 0:00:20]} 11. Nf1 {[%emt 0:00:35]} Be6 {[%emt 0:02:00]} 12. Bxe6 {[%emt 0:00:10]} Rxe6 {[%emt 0:00:05]} 13. g4 {[%emt 0:01:20]} ({Better is} 13. b4) 13... d5 {[%emt 0:00:24]} 14. Qe2 {[%emt 0:00:14]} Qd7 {[%emt 0:21:53]} 15. Ng3 {[%emt 0:00:28]} dxe4 {[%emt 0:03:50]} 16. dxe4 {[%emt 0:00:11]} Rd8 {[%emt 0:00:20]} 17. g5 {[%emt 0:00:37]} hxg5 {[%emt 0:00:22]} 18. Bxg5 {[%emt 0:00:55]} Qd3 {[%emt 0:01:22]} 19. Kf1 {[%emt 0:00:51]} Kf8 {[%emt 0:03:59]} 20. h4 {[%emt 0:06:02]} Rd7 {[%emt 0:10:02]} 21. Qxd3 {[%emt 0:08:38]} (21. Red1 {simplifies} Qxe2+ 22. Kxe2 Rxd1 23. Rxd1 Ng4 24. Nh1) 21... Rxd3 {[%emt 0:00:03]} 22. Ke2 {[%emt 0:00:16]} Rd7 {[%emt 0:02:12]} 23. Rg1 {[%emt 0:07:16]} Na5 {[%emt 0:22:14]} (23... Ne8 $11) 24. Bxf6 {[%emt 0:06:15]} (24. h5 $16) 24... Rxf6 $14 {[%emt 0:00:38]} 25. Nh5 {[%emt 0:01:29]} (25. Rad1 {simplifies} Rxd1 26. Rxd1 Rd6 27. Rxd6 cxd6 28. Nd2) 25... Rfd6 {[%emt 0:05:24]} (25... Rb6 $11 {keeps the balance.} 26. b4 g6 27. Nxe5 (27. bxa5 $2 {loses.} Rb2+ 28. Ke1 Bxf2+ 29. Kf1 Bxg1 $19) 27... Re7) 26. Rxg7 $16 {[%emt 0:05:36][%cal Oa1g1]} (26. Nxe5 $2 {perishes.} Rd2+ 27. Kf3 Rxf2+ 28. Kg3 Re7 $19) 26... Nb3 {[%emt 0:04:00]} 27. Rag1 {[%emt 0:06:49][%cal Og1g5]} Rd2+ {[%emt 0:01:32]} 28. Nxd2 {[%emt 0:00:41]} Rxd2+ {[%emt 0:00:03][%cal Bd7d2,Bd2f2,Bf2f3][%mdl 32]} 29. Kf3 {[%emt 0:00:08] Strongly threatening R1g5.} Rxf2+ {[%emt 0:00:11] [#]} 30. Kg3 $1 {[%emt 0:12:03] And now Kh3 would win.} Nd2 {[%emt 0:01:39] Threatens to win with ...Rf3+.} 31. Kh3 {[%emt 0:01:41] Black must now prevent Rg8+.} Nxe4 {[%emt 0:02:03]} 32. R7g2 {[%emt 0:02:06]} Rf3+ {[%emt 0:02:34]} 33. Kg4 {[%emt 0:01:38]} Re3 {[%emt 0:01:31]} 34. Rf1 $36 {[%emt 0:01:36][%mdl 2048] White is really pushing.} Ke7 {[%emt 0:00:52] [#] A mistake that costs the game.} (34... Bc5 $16 35. Rf3 Re1) 35. Ng3 $1 $18 {[%emt 0:05:53] Nf5+ is the strong threat.} Ke6 {[%emt 0:00:31]} 36. h5 {[%emt 0:05:20][%cal Bh4h5,Bh5h6][%mdl 32] aiming for h6.} Nf6+ {[%emt 0:01:33]} 37. Kg5 {[%emt 0:04:14]} Nh7+ {[%emt 0:00:18]} 38. Kh4 {[%emt 0:00:05]} Bc5 {[%emt 0:01:04]} 39. Nf5 {[%emt 0:00:22]} Re4+ {[%emt 0:00:18]} 40. Kh3 {[%emt 0:01:14]} Bf8 {[%emt 0:02:21]} 41. h6 {[%emt 0:31:56] White is clearly winning.} Rxa4 {[%emt 0:19:03]} 42. Rg8 {[%emt 0:00:00]} Rf4 {[%emt 0:00:56]} 43. Ng7+ {[%emt 0:00:00] Weighted Error Value: White=0.07 (flawless) /Black=0.24 (precise) .  Mistake:       	White=2     	Black=3      Inaccurate:     	White=1     	Black=1      OK:         	White=18    	Black=10     Best:        	White=5     	Black=4      Strong:       	White=2     	---} 1-0

[Event "45th FIDE Olympiad 2024"]
[Site "Budapest"]
[Date "2024.09.15"]
[Round "5.34"]
[White "Al Ibrahim, Abdulrahman"]
[Black "Schwarz, Bernhard"]
[Result "1-0"]
[ECO "C04"]
[WhiteElo "1932"]
[BlackElo "1875"]
[PlyCount "56"]
[EventDate "2024.09.05"]
[EventType "team-tourn"]
[EventCountry "HUN"]
[WhiteTeam "Kuwait"]
[BlackTeam "Namibia"]
[WhiteTeamCountry "KUW"]
[BlackTeamCountry "NAM"]
[TimeControl "40/5400+30:1800+30"]

1. e4 e6 2. d4 d5 3. Nd2 Nc6 4. Ngf3 Nf6 5. e5 Nd7 6. Be2 f6 7. exf6 Qxf6 8. Nf1 Bd6 9. Ne3 b6 10. O-O Bb7 11. c4 Ne7 12. Ng4 Qf5 13. h3 dxc4 14. Ne3 Qf7 15. Qa4 O-O-O 16. Qxa7 Nc6 17. Qa4 Nxd4 18. Nxd4 Qf4 19. Nf3 Bxf3 20. Ng4 Nc5 21. Qb5 Qf5 22. Bxf3 h5 23. Nh2 g5 24. Bc6 g4 25. Be3 Rdg8 26. Bxc5 Bxh2+ 27. Kxh2 bxc5 28. Rad1 Qe5+ 1-0

[Event "45th FIDE Olympiad 2024"]
[Site "Budapest"]
[Date "2024.09.15"]
[Round "5.35"]
[White "Berdayes Ason, Dylan Isidro"]
[Black "Warmerdam, Max"]
[Result "1/2-1/2"]
[ECO "E71"]
[WhiteElo "2474"]
[BlackElo "2679"]
[Annotator "TA"]
[PlyCount "63"]
[EventDate "2024.09.05"]
[EventType "team-tourn"]
[EventCountry "HUN"]
[SourceTitle "playchess.com"]
[Source "ChessBase"]
[SourceQuality "1"]
[WhiteTeam "Cuba"]
[BlackTeam "Netherlands"]
[WhiteTeamCountry "CUB"]
[BlackTeamCountry "NED"]
[TimeControl "40/5400+30:1800+30"]

{[%evp 11,63,24,31,43,43,43,54,39,51,54,61,44,61,55,64,52,51,58,60,35,54,45,93,81,84,57,72,58,96,75,83,76,86,86,86,81,60,45,129,0,75,0,82,72,72,46,61,49,70,0,54,0,73,0]} 1. d4 {[%emt 0:00:03]} Nf6 {[%emt 0:00:09]} 2. c4 {[%emt 0:00:02]} g6 {[%emt 0:00:08]} 3. Nc3 {[%emt 0:00:10]} Bg7 {[%emt 0:00:14]} 4. e4 {[%emt 0:00:02]} d6 {[%emt 0:00:06]} 5. h3 {[%emt 0:00:04]} O-O {[%emt 0:00:08]} 6. Be3 {[%emt 0:00:02]} Na6 {[%emt 0:00:08]} 7. g4 {[%emt 0:00:53]} c6 {[%emt 0:00:06]} 8. f3 {[%emt 0:00:27]} Rb8 {[%emt 0:01:57]} 9. Qd2 {[%emt 0:00:08] White is slightly better.} Nc7 {[%emt 0:02:12]} 10. Nge2 {[%emt 0:00:03][%cal Bg1e2,Be2c3,Bc3a4][%mdl 32]} b5 {[%emt 0:02:45]} 11. cxb5 {[%emt 0:00:50]} Nxb5 {[%emt 0:00:06]} 12. Nxb5 {[%emt 0:00:04]} Rxb5 {[%emt 0:00:08]} 13. Rc1 {[%emt 0:00:03]} Rb6 {[%emt 0:04:38]} 14. Nc3 {[%emt 0:00:27]} a5 {[%emt 0:04:04]} 15. b3 {[%emt 0:05:56]} Rb4 $1 {[%emt 0:06:21]} 16. Be2 {[%emt 0:07:26]} Qb6 {[%emt 0:14:17]} (16... e6 $14 {was preferrable.}) 17. Na4 {[%emt 0:11:06]} Qb7 {[%emt 0:02:40]} 18. Kf2 {[%emt 0:06:14]} Bd7 {[%emt 0:01:41][%cal Oc6c5]} 19. Nc3 {[%emt 0:03:23]} Ra8 {[%emt 0:03:52]} 20. Rc2 {[%emt 0:03:35]} Qb8 {[%emt 0:18:25]} 21. Kg2 {[%emt 0:07:09]} Bc8 {[%emt 0:02:12]} 22. Rhc1 {[%emt 0:12:47]} Bd7 {[%emt 0:01:55]} 23. Na4 {[%emt 0:05:44]} Ne8 {[%emt 0:03:28][%cal Bf6e8,Be8c7,Bc7b5][%mdl 32]} 24. Rc4 {[%emt 0:08:01]} Rb5 {[%emt 0:04:59] [#]} (24... Nc7 $14) 25. R4c2 {[%emt 0:05:32]} (25. Rxc6 $142 $1 Bxc6 26. Rxc6) 25... Rb4 $16 {[%emt 0:00:05]} 26. Rc4 {[%emt 0:01:15]} ({White should try} 26. f4 $16) 26... Rxc4 {[%emt 0:04:01]} (26... Rb5 $1 $11 {keeps the balance.}) 27. Bxc4 {[%emt 0:01:48]} Nc7 {[%emt 0:00:10]} 28. Be2 {[%emt 0:05:34] White is much more active.} Qb7 {[%emt 0:04:57]} 29. Rc2 {[%emt 0:06:26]} Nb5 {[%emt 0:02:19]} 30. Rc1 {[%emt 0:00:54]} Nc7 $1 {[%emt 0:00:27]} 31. Rc2 {[%emt 0:00:03]} Nb5 $1 {[%emt 0:00:18]} 32. Rc1 {[%emt 0:00:02] Weighted Error Value: White=0.21 (precise) /Black=0.15 (very precise) .  Mistake:       	White=3     	Black=3      Inaccurate:     	White=2     	Black=1      OK:         	White=5     	Black=7      Best:        	White=1     	---        Strong:       	---       	Black=3} ({White should play} 32. h4 $16) 1/2-1/2

[Event "45th FIDE Olympiad 2024"]
[Site "Budapest"]
[Date "2024.09.15"]
[Round "5.35"]
[White "Khoa, Goodwill"]
[Black "Hussain, Hashem"]
[Result "1-0"]
[ECO "A25"]
[WhiteElo "1890"]
[BlackElo "1807"]
[PlyCount "99"]
[EventDate "2024.09.05"]
[EventType "team-tourn"]
[EventCountry "HUN"]
[WhiteTeam "Namibia"]
[BlackTeam "Kuwait"]
[WhiteTeamCountry "NAM"]
[BlackTeamCountry "KUW"]
[TimeControl "40/5400+30:1800+30"]

1. c4 e5 2. Nc3 Nc6 3. g3 Bb4 4. Bg2 d6 5. Nf3 Nge7 6. Nd5 Bc5 7. Qa4 Bd7 8. Qb3 O-O 9. d3 a5 10. O-O a4 11. Qc2 Nxd5 12. cxd5 Nb4 13. Qd1 Qe8 14. Ng5 f5 15. a3 Na6 16. Ne6 Rf6 17. Bg5 Rg6 18. h4 Bxe6 19. dxe6 h6 20. Be3 Bxe3 21. fxe3 Rxg3 22. Kf2 Rg4 23. Bxb7 Qh5 24. Ke1 Qxh4+ 25. Kd2 Ra7 26. Bd5 Qe7 27. Rxf5 c6 28. Ba2 Ra8 29. Rf7 Qg5 30. Ra7 Rb8 31. Rxa6 Rg3 32. e7+ Kh7 33. Rxa4 Qxe3+ 34. Kc2 Rg2 35. Re4 Qc5+ 36. Bc4 d5 37. b4 Qxe7 38. Qf1 Rg5 39. Rh4 dxc4 40. Rxc4 Rf8 41. Qh1 Rf6 42. Rxc6 Rf4 43. Rf1 Qf7 44. Rxf4 exf4 45. Qe4+ Rf5 46. Rc5 Qa2+ 47. Kd1 Qb1+ 48. Kd2 Qb2+ 49. Ke1 g6 50. Rc7+ 1-0

[Event "45th FIDE Olympiad 2024"]
[Site "Budapest"]
[Date "2024.09.15"]
[Round "5.36"]
[White "L'ami, Erwin"]
[Black "Miranda Mesa, Elier"]
[Result "1-0"]
[ECO "D17"]
[WhiteElo "2628"]
[BlackElo "2512"]
[Annotator "TA"]
[PlyCount "103"]
[EventDate "2024.09.05"]
[EventType "team-tourn"]
[EventCountry "HUN"]
[SourceTitle "playchess.com"]
[Source "ChessBase"]
[SourceQuality "1"]
[WhiteTeam "Netherlands"]
[BlackTeam "Cuba"]
[WhiteTeamCountry "NED"]
[BlackTeamCountry "CUB"]
[TimeControl "40/5400+30:1800+30"]

{[%evp 13,103,25,16,0,2,-10,-30,-5,0,0,18,0,31,23,58,45,51,47,60,55,84,85,71,67,66,43,54,44,45,54,81,89,101,93,126,112,129,93,158,162,192,180,181,160,143,0,195,193,327,331,309,168,153,177,189,171,236,221,233,229,227,225,243,108,310,326,322,322,389,385,385,379,380,354,1077,341,420,413,982,478,484,484,1008,896,5097,412,900,879,1121,1139,1153,1097]} 1. d4 {[%emt 0:00:04]} d5 {[%emt 0:00:04]} 2. c4 {[%emt 0:00:15]} c6 {[%emt 0:00:03]} 3. Nf3 {[%emt 0:00:21][%cal Bg1f3,Bf3e5,Be5c4][%mdl 32]} Nf6 {[%emt 0:00:06]} 4. Nc3 {[%emt 0:00:08]} dxc4 {[%emt 0:00:13]} 5. a4 {[%emt 0:00:15]} Bf5 {[%emt 0:00:11]} 6. Ne5 {[%emt 0:01:33]} Nbd7 {[%emt 0:00:20]} 7. Nxc4 {[%emt 0:00:12]} Qc7 {[%emt 0:00:10]} 8. Qd2 {[%emt 0:08:40]} g6 {[%emt 0:01:01]} 9. Qf4 {[%emt 0:01:39]} Qxf4 {[%emt 0:07:07]} 10. Bxf4 {[%emt 0:00:09] Black has an edge.} Nb6 {[%emt 0:11:26]} 11. Nxb6 {[%emt 0:05:55]} axb6 {[%emt 0:03:12][%cal Ba7b6,Bb6b5][%mdl 32]} 12. Be5 {[%emt 0:02:49][%cal Oe2e4]} b5 {[%emt 0:09:35] [#]} 13. e4 $1 {[%emt 0:08:47]} Bd7 {[%emt 0:05:16]} (13... Be6 14. d5) 14. Bd3 {[%emt 0:05:09]} Bg7 {[%emt 0:05:00]} 15. O-O {[%emt 0:09:39]} b4 {[%emt 0:02:44]} 16. Na2 {[%emt 0:07:11]} Rxa4 {[%emt 0:04:56] [#]} 17. Nxb4 $1 {[%emt 0:00:28]} Rxa1 {[%emt 0:01:07]} 18. Rxa1 {[%emt 0:00:06]} O-O {[%emt 0:00:05]} 19. f3 {[%emt 0:03:34]} Bc8 {[%emt 0:03:39]} 20. Ra5 {[%emt 0:09:27]} Bh6 {[%emt 0:12:36] ...Bd2 would now be deadly.} 21. Nc2 {[%emt 0:02:12]} Nd7 {[%emt 0:01:09]} 22. Bc7 {[%emt 0:02:59]} Re8 {[%emt 0:02:50]} 23. f4 {[%emt 0:03:58]} Nf8 {[%emt 0:05:31] [#]} 24. g3 $1 {[%emt 0:00:37]} Bg7 {[%emt 0:00:09]} 25. Kf2 $36 {[%emt 0:02:51][%mdl 2048] White is on the roll.} Be6 {[%emt 0:05:42]} ({Better is} 25... c5) 26. Ra7 $16 {[%emt 0:04:03]} Bc8 {[%emt 0:00:54]} 27. e5 {[%emt 0:01:02]} f6 {[%emt 0:02:24] Black is weak on the dark squares} 28. Bc4+ {[%emt 0:02:52]} Be6 {[%emt 0:04:24]} 29. Bd3 {[%emt 0:04:54] White has more active pieces.} (29. Bxe6+ $16 Nxe6 30. Rxb7) 29... Bc8 $1 $18 {[%emt 0:00:56]} 30. Ne3 {[%emt 0:00:27]} g5 {[%emt 0:03:48]} (30... Ne6 $142 31. Bb6 Nd8) 31. f5 {[%emt 0:06:14]} e6 {[%emt 0:00:38]} 32. Ng4 {[%emt 0:00:27]} (32. Bc4 $142) 32... exf5 {[%emt 0:04:08]} 33. Nxf6+ {[%emt 0:00:13]} Bxf6 {[%emt 0:00:06]} 34. exf6 {[%emt 0:00:05]} Ng6 {[%emt 0:02:09] [#]} (34... Ne6 $142 35. Be5 Nf8) 35. h4 $1 {[%emt 0:06:18][%mdl 512]} gxh4 {[%emt 0:01:47]} 36. gxh4 {[%emt 0:00:02] Threatens to win with Bc4+.} h5 {[%emt 0:01:05][%cal Og8f7] [#]} 37. Be5 $1 {[%emt 0:02:25][%mdl 512]} Kf8 {[%emt 0:01:44]} (37... Nxe5 38. dxe5) 38. Ra8 {[%emt 0:00:37]} (38. Be2 $18) 38... Bd7 $2 {[%emt 0:00:34] A mistake that costs the game.} (38... Be6 $16 {might work better.} 39. Ra7 Bd5) 39. Rxe8+ {[%emt 0:00:22]} Bxe8 {[%emt 0:00:35][%mdl 4096] Endgame. [#] KBB-KBN} 40. Kg3 {[%emt 0:00:26]} (40. Bxf5 Nxh4 41. Bc8 b6 $14) 40... c5 {[%emt 0:00:34]} 41. Bd6+ {[%emt 0:09:27]} (41. Bxf5 cxd4 42. Bxd4 Kg8 $18) 41... Kf7 {[%emt 0:01:51]} 42. dxc5 {[%emt 0:00:51]} (42. Bxf5 cxd4 43. Bc5 Kxf6 $14) 42... Kxf6 {[%emt 0:00:43]} 43. b4 {[%emt 0:02:56]} Ne5 $2 {[%emt 0:11:54]} (43... Ke6 44. Bc4+ Kf6) 44. Bf1 $2 {[%emt 0:01:43]} (44. Bxe5+ Kxe5 45. Be2) 44... Bc6 {[%emt 0:06:45]} 45. Be2 {[%emt 0:02:25]} Be8 {[%emt 0:04:37]} (45... Ng4 $142 46. b5 Be4) 46. b5 {[%emt 0:08:03]} (46. Bxe5+ $142 Kxe5 47. Bf3) 46... Bd7 {[%emt 0:00:52]} 47. b6 {[%emt 0:02:04] Black must now prevent Bxe5+.} (47. Bxh5 Bxb5 48. Bxe5+ Kxe5 $11) 47... Nf7 {[%emt 0:05:15]} (47... Nc6 $142 48. Bxh5 Nd4) 48. Bc7 {[%emt 0:01:00]} Ne5 {[%emt 0:00:48]} 49. Bxh5 {[%emt 0:01:19]} (49. Bxe5+ $142 Ke6 50. Bf3 (50. Kf4 Bc6 $18) 50... Kxe5 51. Bxb7 (51. Bxh5 f4+ 52. Kf2 Kd5 $18) 51... f4+ 52. Kf2 Ke6 53. Bf3 (53. c6 Ke7 54. cxd7 Kxd7 55. Ba6 Kd6 56. b7 Kc7 57. Kf3 Kb8 58. Kxf4 Ka7) 53... Bc8 54. b7 (54. Bxh5 Kd5 $18) (54. c6 Kd6 55. b7 Kc7 56. bxc8=Q+ Kxc8 57. Bxh5 Kd8 58. Bf3 Ke8)) 49... Ng4 {[%emt 0:00:30]} (49... f4+ $142 50. Kxf4 Nd3+ 51. Ke3 Nxc5) 50. Kf4 {[%emt 0:00:42] White is clearly winning.} Bc8 {[%emt 0:01:35]} 51. Bd8+ {[%emt 0:01:08]} Kg7 {[%emt 0:00:14]} 52. Be8 {[%emt 0:01:02] Weighted Error Value: White=0.43/Black=0.33.  Loses game:     	---       	Black=1      Mistake:       	White=5     	Black=6      Inaccurate:     	---       	Black=6      OK:         	White=14    	Black=10     Best:        	White=4     	Black=1      Strong:       	White=1     	Black=1      Brilliant:      	White=3     	---} 1-0

[Event "45th FIDE Olympiad 2024"]
[Site "Budapest"]
[Date "2024.09.15"]
[Round "5.36"]
[White "Alabdaljader, Mohammed"]
[Black "Nitzborn, Max Baron"]
[Result "1-0"]
[ECO "B20"]
[WhiteElo "1677"]
[BlackElo "1800"]
[PlyCount "101"]
[EventDate "2024.09.05"]
[EventType "team-tourn"]
[EventCountry "HUN"]
[WhiteTeam "Kuwait"]
[BlackTeam "Namibia"]
[WhiteTeamCountry "KUW"]
[BlackTeamCountry "NAM"]
[TimeControl "40/5400+30:1800+30"]

1. e4 c5 2. b3 Nc6 3. Bb2 d6 4. Bb5 Bd7 5. Nc3 Nf6 6. f4 Nd4 7. Bxd7+ Qxd7 8. Nf3 Ne6 9. g3 g6 10. d3 Bg7 11. Qd2 Nc7 12. O-O-O O-O-O 13. Kb1 Ng4 14. h3 Nh6 15. Rhe1 e5 16. fxe5 dxe5 17. Na4 Qe7 18. Qa5 b5 19. Nc3 Rd6 20. Nd5 Nxd5 21. exd5 f6 22. Qxb5 Rb6 23. Qa5 Kb7 24. d4 Rc8 25. Ba3 Ra6 26. Qb5+ Rb6 27. Qe2 Ra6 28. Bxc5 Rxc5 29. dxc5 Qxc5 30. Rd2 Nf5 31. Qc4 Qa5 32. b4 Qa4 33. Qb3 Qxb3+ 34. cxb3 Nd6 35. Rc2 Bh6 36. a4 Rb6 37. b5 a6 38. bxa6+ Rxa6 39. Rc5 Rb6 40. Ka2 Nf5 41. g4 Bf8 42. Rc6 Nd6 43. Rec1 Rb4 44. Rc7+ Kb8 45. Rxh7 e4 46. Rh8 exf3 47. Rxf8+ Kb7 48. Rxf6 Ne4 49. Rxf3 Nd2 50. Re3 Rd4 51. Rd1 1-0

[Event "45th FIDE Olympiad 2024"]
[Site "Budapest"]
[Date "2024.09.15"]
[Round "5.37"]
[White "Kadric, Denis"]
[Black "Keymer, Vincent"]
[Result "1-0"]
[ECO "C54"]
[WhiteElo "2553"]
[BlackElo "2730"]
[Annotator "TA"]
[PlyCount "69"]
[EventDate "2024.09.05"]
[EventType "team-tourn"]
[EventCountry "HUN"]
[SourceTitle "playchess.com"]
[Source "ChessBase"]
[SourceQuality "1"]
[WhiteTeam "Montenegro"]
[BlackTeam "Germany"]
[WhiteTeamCountry "MNE"]
[BlackTeamCountry "GER"]
[TimeControl "40/5400+30:1800+30"]

{[%evp 17,69,17,18,11,16,10,20,14,12,22,21,8,4,0,48,47,52,35,47,62,189,182,200,197,180,179,245,239,231,165,414,414,448,420,447,417,456,430,467,414,445,447,1016,299,1008,995,29963,29964,5457,5397,29993,2769,29994,29995]} 1. e4 {[%emt 0:00:03]} e5 {[%emt 0:00:02]} 2. Nf3 {[%emt 0:00:09]} Nc6 {[%emt 0:00:05]} 3. Bc4 {[%emt 0:00:09]} Nf6 {[%emt 0:00:05]} 4. d3 {[%emt 0:00:01]} Bc5 {[%emt 0:00:06]} 5. c3 {[%emt 0:00:24]} a6 {[%emt 0:00:27]} 6. O-O {[%emt 0:00:36]} d6 {[%emt 0:01:38]} 7. Nbd2 {[%emt 0:00:05][%cal Bb1d2,Bd2f1,Bf1g3][%mdl 32]} O-O {[%emt 0:02:35]} 8. h3 {[%emt 0:01:05]} Ba7 {[%emt 0:04:23]} 9. Bb3 {[%emt 0:00:05]} Be6 {[%emt 0:05:05]} 10. Re1 {[%emt 0:00:09]} Bxb3 {[%emt 0:05:10]} 11. Qxb3 {[%emt 0:00:05]} Qd7 {[%emt 0:12:32]} 12. Nf1 {[%emt 0:00:08] The position is equal.} (12. Qxb7 $2 Rfb8 $19) 12... h6 {[%emt 0:03:39]} 13. Ng3 {[%emt 0:00:10]} (13. Qxb7 $2 Rfb8 $19) 13... Rab8 {[%emt 0:04:15]} 14. Be3 {[%emt 0:01:20]} (14. Bd2 {is interesting.} Rfe8 15. Nf5 d5 16. Rad1) 14... Bxe3 {[%emt 0:00:46]} 15. Rxe3 {[%emt 0:00:04]} Nh7 {[%emt 0:04:44]} (15... Qe6 $11) 16. d4 $14 {[%emt 0:01:35]} Ng5 {[%emt 0:03:03]} 17. Rd1 {[%emt 0:07:17]} g6 {[%emt 0:10:02]} 18. Nh4 {[%emt 0:12:39]} Na5 {[%emt 0:12:34] This move loses the game for Black.} (18... Ne6 $14) 19. Qd5 $18 {[%emt 0:07:24]} Qa4 {[%emt 0:13:46]} 20. b3 {[%emt 0:02:23]} (20. dxe5 $6 Nc4 21. Nxg6 Nxe3 22. Ne7+ (22. fxe3 Rfe8 $16) 22... Kh7 23. fxe3 dxe5 $16) 20... Qxa2 {[%emt 0:00:02] [#]} 21. Ree1 $1 $36 {[%emt 0:28:04][%mdl 2048] Black is under strong pressure.} (21. dxe5 Qxb3 22. c4 c6 23. Qxd6 (23. Qxa5 $2 Qxd1+ 24. Re1 Qd4 $19) 23... Qc2) (21. Nxg6 Rfd8 22. dxe5 c6 23. Ne7+ Kh7) 21... c6 {[%emt 0:00:53]} (21... Rfe8 $142 22. Ra1 (22. Nxg6 Qxb3 23. Qxa5 fxg6 $16) 22... Qxb3) 22. Qxd6 {[%emt 0:00:13]} Qxb3 {[%emt 0:01:03]} 23. Qxe5 {[%emt 0:07:04]} b6 $2 {[%emt 0:01:13] [#]} (23... Nc4 24. Qf6 Nh7) 24. Ngf5 $1 {[%emt 0:13:16][%mdl 512]} gxf5 {[%emt 0:00:29]} 25. Nxf5 {[%emt 0:00:04]} f6 {[%emt 0:00:10]} 26. Qg3 {[%emt 0:02:18][%cal Oh3h4] aiming for h4!} (26. Nxh6+ Kh7 27. Qf4 Kxh6 $11) 26... Kh8 {[%emt 0:04:42]} 27. h4 {[%emt 0:00:03]} (27. Nxh6 Nh7 $14) 27... Ne6 {[%emt 0:00:40]} 28. Qg6 {[%emt 0:10:47]} (28. Nxh6 Rb7 $16) 28... Rb7 {[%emt 0:01:14]} 29. d5 {[%emt 0:00:02]} (29. Qxh6+ Rh7 30. Qg6 Ng7 $15 (30... Nf4 31. Qg4 $15)) 29... Ng7 {[%emt 0:01:29]} (29... Rh7 $142 30. dxe6 Qxe6) 30. Qxh6+ {[%emt 0:00:25]} ({Weaker is} 30. Nxh6 Nc4 $14) 30... Kg8 {[%emt 0:00:00]} 31. Rd3 {[%emt 0:00:10]} Nxf5 {[%emt 0:02:52]} 32. exf5 {[%emt 0:00:02]} Rg7 {[%emt 0:00:10] [#]} 33. Re7 $3 {[%emt 0:00:28][%mdl 512]} Rff7 {[%emt 0:00:15]} (33... Qd1+ 34. Rxd1) 34. Re8+ {[%emt 0:00:11]} Rf8 {[%emt 0:00:01]} 35. Rg3 {[%emt 0:00:26] Weighted Error Value: White=0.08 (flawless) /Black=0.67.  Mistake:       	---       	Black=5      Inaccurate:     	---       	Black=2      OK:         	White=9     	Black=9      Best:        	White=3     	Black=2} 1-0

[Event "45th FIDE Olympiad 2024"]
[Site "Budapest"]
[Date "2024.09.15"]
[Round "5.37"]
[White "Kumar, Manoj"]
[Black "Giasi, Viresh"]
[Result "0-1"]
[ECO "E00"]
[WhiteElo "1951"]
[BlackElo "1998"]
[PlyCount "98"]
[EventDate "2024.09.05"]
[EventType "team-tourn"]
[EventCountry "HUN"]
[WhiteTeam "Fiji"]
[BlackTeam "Suriname"]
[WhiteTeamCountry "FIJ"]
[TimeControl "40/5400+30:1800+30"]

1. d4 Nf6 2. c4 e6 3. g3 Bb4+ 4. Bd2 Bxd2+ 5. Qxd2 Qe7 6. Bg2 d6 7. Nc3 O-O 8. e4 e5 9. Nge2 Be6 10. Nd5 Bxd5 11. exd5 Nbd7 12. O-O Nb6 13. b3 Nh5 14. dxe5 Qxe5 15. Rfe1 Nf6 16. Nd4 Qh5 17. Nb5 Rfc8 18. Qd4 Nfd7 19. Qf4 a6 20. Nd4 Ne5 21. Rad1 Re8 22. Qf5 Qxf5 23. Nxf5 g6 24. Ne3 Ned7 25. h4 h5 26. Nc2 Nc5 27. Kf1 Kf8 28. Nb4 a5 29. Nd3 Nxd3 30. Rxd3 Rxe1+ 31. Kxe1 a4 32. Ke2 axb3 33. axb3 Nd7 34. Rd2 Ra3 35. Rb2 Nc5 36. b4 Na4 37. Rc2 Rb3 38. b5 Ke7 39. Kd2 Kf6 40. Ra2 Rb2+ 41. Rxb2 Nxb2 42. Bf1 Ke5 43. Kc2 Na4 44. Bh3 f5 45. Kd3 Nb2+ 46. Kc3 Nd1+ 47. Kb4 Nxf2 48. Bg2 b6 49. Kc3 Ne4+ {0-} 0-1